bitfinex/quotes_SOLUSD_20250305
["timestamp","ask_amount","ask_price","bid_price","bid_amount"]
[1741147919530,33.15570025,142.61,142.56,7.0473]
[1741147920342,33.15570025,142.6,142.56,0.033]
[1741147920530,33.15570025,142.58,142.56,20.033]
[1741147920737,33.15570025,142.58,142.56,0.033]
[1741147921427,33.15570025,142.59,142.56,0.033]
[1741147922950,114.01580025,142.61,142.56,0.31732314]
[1741147923125,38.91570025,142.63,142.57,33.15570025]
[1741147923454,33.15570025,142.62,142.56,33.47302339]
[1741147924122,33.15570025,142.62,142.57,7.014]
[1741147924354,33.15570025,142.61,142.56,7.33162314]
[1741147924537,33.15570025,142.6,142.56,7.33162314]
[1741147924726,5.76,142.63,142.56,0.033]
[1741147924727,33.15570025,142.59,142.56,0.033]
[1741147925244,53.15570025,142.57,142.56,0.0001]
[1741147925445,20.0,142.54,142.51,0.033]
[1741147925654,66.3114005,142.52,142.51,0.033]
[1741147926434,73.3279005,142.52,142.51,0.033]
[1741147929251,76.77017143,142.52,142.51,0.033]
[1741147929557,43.61447118,142.52,142.51,0.033]
[1741147929739,76.77017143,142.52,142.51,0.033]
[1741147931264,76.77017143,142.52,142.49,0.033]
[1741147931265,218.38432314,142.51,142.49,0.033]
[1741147931559,26.3759,142.44,142.42,0.033]
[1741147931735,39.01570025,142.43,142.42,0.033]
[1741147933069,42.58694241,142.43,142.42,0.033]
[1741147933271,49.60784241,142.43,142.42,0.033]
[1741147933639,49.89216555,142.43,142.42,0.033]
[1741147933962,42.87126555,142.43,142.41,0.033]
[1741147934137,33.15570025,142.42,142.41,0.033]
[1741147935348,33.44002339,142.42,142.41,0.033]
[1741147935547,33.15570025,142.42,142.41,0.033]
[1741147936463,33.44002339,142.42,142.4,0.033]
[1741147936769,53.15570025,142.41,142.4,0.033]
[1741147937277,86.3114005,142.41,142.36,0.033]
[1741147937447,33.15570025,142.37,142.36,0.033]
[1741147940275,33.15570025,142.37,142.2,85.8536]
[1741147940276,0.28432314,142.36,142.2,85.8536]
[1741147940456,33.15570025,142.29,142.23,33.15570025]
[1741147940981,33.15570025,142.29,142.24,0.28432314]
[1741147941172,33.15570025,142.3,142.24,33.44002339]
[1741147941548,5.98,142.31,142.26,0.28432314]
[1741147941549,39.13570025,142.31,142.26,0.28432314]
[1741147941747,33.15570025,142.31,142.26,0.28432314]
[1741147942353,33.15570025,142.32,142.26,33.44002339]
[1741147943579,33.15570025,142.32,142.27,7.0288]
[1741147944581,33.15570025,142.31,142.27,7.0288]
[1741147945274,33.15570025,142.32,142.27,7.0288]
[1741147945574,33.15570025,142.32,142.28,0.28432314]
[1741147946301,33.15570025,142.33,142.28,0.28432314]
[1741147947306,33.15570025,142.33,142.28,0.31732314]
[1741147947480,33.15570025,142.32,142.28,0.31732314]
[1741147947880,33.15570025,142.32,142.28,7.34532314]
[1741147948681,33.15570025,142.33,142.28,7.34532314]
[1741147949102,81.8,142.38,142.31,33.44002339]
[1741147949312,114.95570025,142.38,142.32,33.44002339]
[1741147949800,39.07570025,142.39,142.34,0.28432314]
[1741147950001,33.15570025,142.38,142.34,0.28432314]
[1741147950907,39.07570025,142.39,142.34,0.28432314]
[1741147951279,6.6274,142.34,142.28,0.033]
[1741147951491,33.15570025,142.29,142.28,0.033]
[1741147954812,40.18360025,142.29,142.28,0.033]
[1741147955905,7.0279,142.29,142.28,0.033]
[1741147956217,33.15570025,142.29,142.28,0.033]
[1741147956398,114.95570025,142.29,142.28,0.033]
[1741147956597,121.01570025,142.29,142.28,0.033]
[1741147956803,114.95570025,142.29,142.28,0.033]
[1741147956989,121.01570025,142.29,142.28,0.033]
[1741147957316,39.21570025,142.29,142.28,0.033]
[1741147958092,46.24360025,142.29,142.28,0.033]
[1741147958295,46.24360025,142.29,142.13,0.033]
[1741147958296,2.28432314,142.27,142.13,0.033]
[1741147958486,33.15570025,142.17,142.13,0.033]
[1741147958910,39.31570025,142.19,142.14,0.28432314]
[1741147959310,39.31570025,142.19,142.13,7.0686]
[1741147959517,39.31570025,142.19,142.14,0.28432314]
[1741147959691,33.15570025,142.18,142.14,0.28432314]
[1741147959887,39.31570025,142.19,142.13,33.18870025]
[1741147960087,33.15570025,142.18,142.13,7.0687]
[1741147960289,33.15570025,142.18,142.13,0.033]
[1741147960494,33.15570025,142.17,142.13,20.033]
[1741147961784,13.1928,142.19,142.14,0.28432314]
[1741147961785,6.16,142.19,142.14,0.28432314]
[1741147961989,33.15570025,142.18,142.14,0.14216157]
[1741147962185,33.15570025,142.17,142.13,0.033]
[1741147963596,33.15570025,142.16,142.13,0.033]
[1741147964109,81.8,142.23,142.16,0.28432314]
[1741147964298,81.8,142.23,142.17,33.15570025]
[1741147964615,33.15570025,142.21,142.16,33.44002339]
[1741147964819,33.15570025,142.19,142.14,0.28432314]
[1741147965719,33.15570025,142.21,142.16,0.28432314]
[1741147966099,33.15570025,142.21,142.16,7.31852314]
[1741147966828,33.15570025,142.21,142.16,7.0342]
[1741147967704,33.15570025,142.2,142.16,7.0342]
[1741147968221,81.8,142.22,142.14,7.0353]
[1741147968394,33.15570025,142.17,142.13,7.0686]
[1741147968821,33.15570025,142.16,142.13,0.033]
[1741147969003,33.15570025,142.14,142.13,0.033]
[1741147969597,218.1,142.16,142.13,0.033]
[1741147969918,33.15570025,142.15,142.13,0.033]
[1741147970121,251.25570025,142.16,142.13,0.033]
[1741147970308,33.15570025,142.18,142.13,0.033]
[1741147970512,33.15570025,142.19,142.13,33.18870025]
[1741147970920,33.15570025,142.19,142.14,0.14216157]
[1741147971107,33.15570025,142.2,142.14,33.29786182]
[1741147971309,33.15570025,142.19,142.14,7.0353]
[1741147971904,33.15570025,142.18,142.14,7.0353]
[1741147972326,33.15570025,142.15,142.06,7.039]
[1741147972638,33.15570025,142.1,142.04,40.19590025]
[1741147972828,33.15570025,142.1,142.05,0.14216157]
[1741147973303,33.15570025,142.1,142.05,7.18176157]
[1741147973507,39.45570025,142.14,142.07,33.15570025]
[1741147973715,6.3,142.14,142.08,33.15570025]
[1741147973927,39.45570025,142.14,142.08,33.15570025]
[1741147974139,33.15570025,142.12,142.07,0.14216157]
[1741147974627,6.3,142.14,142.07,0.14216157]
[1741147974839,33.15570025,142.13,142.07,0.14216157]
[1741147975022,33.15570025,142.12,142.07,0.14216157]
[1741147976035,33.15570025,142.12,142.07,7.18066157]
[1741147976635,33.15570025,142.13,142.07,40.33636182]
[1741147976838,39.45570025,142.14,142.09,0.14216157]
[1741147977726,39.45570025,142.14,142.09,7.17976157]
[1741147978233,33.15570025,142.13,142.09,7.17976157]
[1741147978833,33.15570025,142.12,142.08,7.0382]
[1741147979014,33.15570025,142.11,142.08,7.0382]
[1741147979215,33.15570025,142.11,142.04,17.5998]
[1741147979216,33.15570025,142.1,142.05,7.0397]
[1741147980343,33.15570025,142.08,142.02,40.19690025]
[1741147980514,33.15570025,142.07,142.02,7.0412]
[1741147980714,33.15570025,142.07,142.03,0.14216157]
[1741147980915,33.15570025,142.07,142.02,7.0412]
[1741147981143,33.15570025,142.07,142.03,0.14216157]
[1741147981438,33.15570025,142.05,142.02,7.0412]
[1741147982324,33.15570025,142.06,142.02,7.0412]
[1741147983146,33.15570025,142.07,142.03,0.14216157]
[1741147983357,33.15570025,142.04,142.01,0.033]
[1741147983664,33.15570025,142.02,142.01,0.033]
[1741147984859,33.15570025,142.03,142.01,0.033]
[1741147985062,33.15570025,142.02,142.01,0.033]
[1741147985556,6.22,142.05,142.01,0.033]
[1741147985861,33.15570025,142.04,142.02,0.033]
[1741147986051,39.37570025,142.05,142.02,0.033]
[1741147986636,81.8,142.09,142.02,33.33086182]
[1741147986836,33.15570025,142.09,142.04,7.18236157]
[1741147987048,33.15570025,142.1,142.04,40.33806182]
[1741147987266,33.15570025,142.1,142.04,57.93866182]
[1741147987559,33.18570025,142.13,142.07,33.15570025]
[1741147988064,33.18570025,142.13,142.09,33.15570025]
[1741147988065,0.03,142.13,142.09,33.15570025]
[1741147988862,0.03,142.13,142.11,7.0368]
[1741147990066,0.03,142.13,142.08,99.1946]
[1741147990067,0.03,142.13,142.09,7.32202314]
[1741147990366,0.03,142.13,142.09,7.0377]
[1741147990367,33.18570025,142.13,142.09,7.0377]
[1741147990951,0.03,142.13,142.09,7.0377]
[1741147991448,33.18570025,142.13,142.09,7.0377]
[1741147991650,0.03,142.13,142.09,7.0377]
[1741147992578,33.18570025,142.13,142.09,7.0377]
[1741147993080,0.03,142.13,142.09,7.0377]
[1741147993251,33.18570025,142.13,142.09,7.0377]
[1741147993954,33.15570025,142.12,142.09,7.0377]
[1741147994153,33.15570025,142.11,142.06,7.0392]
[1741147994454,0.03,142.13,142.07,33.15570025]
[1741147994660,33.18570025,142.13,142.07,33.15570025]
[1741147994872,0.03,142.13,142.08,33.15570025]
[1741147995956,0.03,142.13,142.09,33.15570025]
[1741147996159,0.03,142.13,142.1,7.0372]
[1741147996460,0.03,142.13,142.1,40.19290025]
[1741147996777,0.03,142.13,142.1,57.78610025]
[1741147997152,0.03,142.13,142.1,24.6304]
[1741147997353,0.03,142.13,142.1,57.78610025]
[1741147997564,0.03,142.13,142.11,33.15570025]
[1741147997768,0.03,142.21,142.15,20.0]
[1741147997972,0.03,142.21,142.19,33.15570025]
[1741147998173,0.03,142.21,142.2,33.15570025]
[1741147999094,33.15570025,142.26,142.2,33.15570025]
[1741147999095,114.95570025,142.27,142.2,33.29786182]
[1741147999394,114.95570025,142.27,142.21,33.15570025]
[1741147999549,33.15570025,142.26,142.2,33.15570025]
[1741148000253,33.15570025,142.26,142.21,7.0318]
[1741148000881,33.15570025,142.26,142.21,40.18750025]
[1741148002195,33.15570025,142.26,142.21,7.0318]
[1741148002369,33.15570025,142.25,142.2,312.0]
[1741148002571,33.15570025,142.25,142.2,319.0322]
[1741148004083,33.15570025,142.26,142.2,352.18790025]
[1741148005070,33.15570025,142.25,142.2,319.0322]
[1741148005273,33.15570025,142.26,142.2,352.18790025]
[1741148005654,33.15570025,142.26,142.2,40.18790025]
[1741148005873,33.15570025,142.25,142.19,40.18840025]
[1741148006059,33.15570025,142.24,142.19,7.0327]
[1741148006475,33.15570025,142.25,142.19,40.18840025]
[1741148007185,88.8294,142.26,142.19,40.18840025]
[1741148007360,33.15570025,142.25,142.19,40.18840025]
[1741148007860,40.18570025,142.25,142.19,40.18840025]
[1741148008681,40.18570025,142.25,142.19,352.18840025]
[1741148008886,33.15570025,142.25,142.19,352.18840025]
[1741148009082,33.15570025,142.25,142.19,40.18840025]
[1741148009782,88.8295,142.26,142.21,33.15570025]
[1741148009783,81.8,142.26,142.21,33.15570025]
[1741148009988,0.03,142.25,142.21,7.0317]
[1741148010189,33.18570025,142.25,142.19,40.18850025]
[1741148010489,33.18570025,142.25,142.19,7.0328]
[1741148010799,33.18570025,142.25,142.19,40.18850025]
[1741148011983,0.03,142.25,142.2,33.15570025]
[1741148012890,0.03,142.25,142.22,33.15570025]
[1741148013197,0.03,142.25,142.23,33.15570025]
[1741148013978,0.03,142.25,142.24,7.0303]
[1741148015868,0.03,142.25,142.24,319.0303]
[1741148016367,0.03,142.25,142.24,7.0303]
[1741148017878,0.03,142.25,142.22,33.15570025]
[1741148018078,0.03,142.25,142.22,57.76530025]
[1741148018386,0.03,142.25,142.22,24.6096]
[1741148018775,0.03,142.25,142.22,57.76530025]
[1741148018996,0.03,142.28,142.23,33.44002339]
[1741148019171,0.03,142.28,142.25,33.15570025]
[1741148019373,0.03,142.28,142.25,345.15570025]
[1741148020389,0.03,142.28,142.26,7.0293]
[1741148021919,0.03,142.28,142.26,27.83670833]
[1741148022223,0.03,142.28,142.26,7.0293]
[1741148022983,0.03,142.28,142.26,27.83670833]
[1741148023185,0.03,142.28,142.27,20.80740833]
[1741148023484,0.03,142.28,142.26,27.83670833]
[1741148023717,0.03,142.28,142.27,20.80740833]
[1741148023925,0.03,142.28,142.26,27.83670833]
[1741148026622,0.03,142.28,142.26,7.0293]
[1741148026833,0.03,142.28,142.26,27.83670833]
[1741148034116,0.03,142.28,142.26,339.83670833]
[1741148034317,0.03,142.28,142.27,21.09173147]
[1741148036192,0.03,142.28,142.27,28.12053147]
[1741148039801,8.5173,142.33,142.27,45.69273147]
[1741148040003,0.03,142.35,142.3,20.80740833]
[1741148040202,0.03,142.35,142.31,20.80740833]
[1741148040618,20.83740833,142.35,142.3,312.0]
[1741148040920,20.83740833,142.35,142.31,7.0269]
[1741148041726,0.03,142.35,142.31,7.0269]
[1741148042308,0.03,142.35,142.31,27.83430833]
[1741148042511,0.03,142.35,142.31,7.0269]
[1741148043216,0.03,142.4,142.35,0.28432314]
[1741148043420,8.2239,142.46,142.39,21.09173147]
[1741148043595,8.2239,142.46,142.44,20.80740833]
[1741148043793,81.8,142.49,142.45,20.80740833]
[1741148044022,81.8,142.49,142.44,20.80740833]
[1741148044223,20.80740833,142.48,142.42,40.80740833]
[1741148044528,20.80740833,142.44,142.39,81.6]
[1741148045199,20.80740833,142.45,142.4,7.0224]
[1741148045609,20.80740833,142.44,142.4,7.0224]
[1741148046114,20.80740833,142.44,142.4,319.0224]
[1741148046511,20.80740833,142.44,142.39,7.0228]
[1741148046816,20.80740833,142.41,142.37,7.0236]
[1741148047022,7.9931,142.43,142.36,1.28446995]
[1741148047023,20.80740833,142.39,142.36,1.28446995]
[1741148047927,20.80740833,142.39,142.35,7.0248]
[1741148048533,20.80740833,142.38,142.33,88.6258]
[1741148049241,20.80740833,142.39,142.33,109.43320833]
[1741148049407,20.80740833,142.39,142.33,421.43320833]
[1741148050339,102.60740833,142.4,142.35,7.0249]
[1741148052340,8.4547,142.46,142.39,20.80740833]
[1741148052541,29.26210833,142.46,142.4,27.82980833]
[1741148052744,0.03,142.43,142.4,7.0224]
[1741148053450,0.03,142.43,142.4,27.82980833]
[1741148053753,0.03,142.43,142.4,7.0224]
[1741148055246,0.03,142.43,142.4,27.82980833]
[1741148056722,0.03,142.43,142.41,20.80740833]
[1741148057441,0.03,142.43,142.42,7.0214]
[1741148057611,0.03,142.43,142.42,27.82880833]
[1741148058218,81.8,142.49,142.42,45.66683147]
[1741148058427,81.8,142.49,142.44,20.80740833]
[1741148058633,34.97740833,142.5,142.46,20.80740833]
[1741148058634,14.17,142.5,142.46,20.80740833]
[1741148058831,8.41,142.5,142.46,20.80740833]
[1741148059032,0.03,142.5,142.48,20.80740833]
[1741148059330,0.03,142.5,142.47,20.80740833]
[1741148059632,0.03,142.5,142.48,7.0185]
[1741148061619,0.03,142.5,142.46,17.548]
[1741148061952,20.83740833,142.5,142.45,0.28432314]
[1741148062122,0.03,142.5,142.45,21.09173147]
[1741148063031,0.03,142.5,142.46,20.80740833]
[1741148063928,0.03,142.5,142.47,7.019]
[1741148066356,102.60740833,142.49,142.41,81.633]
[1741148066657,20.80740833,142.48,142.42,27.82880833]
[1741148067331,20.80740833,142.48,142.42,7.0214]
[1741148067332,20.80740833,142.47,142.42,7.0214]
[1741148067537,20.80740833,142.45,142.41,7.0548]
[1741148067857,102.60740833,142.45,142.41,7.0548]
[1741148068240,5.76,142.44,142.41,7.0548]
[1741148068445,5.76,142.44,142.41,0.033]
[1741148069732,5.76,142.44,142.41,20.84040833]
[1741148070353,5.76,142.44,142.41,0.033]
[1741148071249,26.56740833,142.44,142.41,0.033]
[1741148071443,20.80740833,142.43,142.41,0.033]
[1741148071650,102.60740833,142.43,142.41,0.033]
[1741148072559,20.80740833,142.42,142.41,0.033]
[1741148072768,102.60740833,142.42,142.41,0.033]
[1741148073360,20.80740833,142.42,142.41,0.033]
[1741148074066,27.82880833,142.42,142.41,0.033]
[1741148075249,20.80740833,142.42,142.41,0.033]
[1741148075564,27.82880833,142.42,142.41,0.033]
[1741148076575,20.80740833,142.42,142.41,0.033]
[1741148076862,27.82880833,142.42,142.41,0.033]
[1741148078947,20.80740833,142.42,142.41,0.033]
[1741148079359,0.03,142.49,142.41,0.31732314]
[1741148079560,0.03,142.49,142.45,20.80740833]
[1741148079942,0.03,142.49,142.44,20.80740833]
[1741148080253,20.80740833,142.47,142.41,20.84040833]
[1741148080569,20.80740833,142.46,142.41,7.0548]
[1741148080748,20.80740833,142.45,142.41,0.033]
[1741148081273,20.80740833,142.46,142.41,7.0548]
[1741148082558,20.80740833,142.47,142.41,27.86220833]
[1741148082760,157.10740833,142.48,142.42,20.80740833]
[1741148082940,20.80740833,142.47,142.41,27.86220833]
[1741148084246,20.80740833,142.46,142.41,7.0548]
[1741148085375,20.80740833,142.44,142.41,0.033]
[1741148085573,26.56740833,142.44,142.41,0.033]
[1741148086069,20.80740833,142.43,142.41,0.033]
[1741148086388,26.56740833,142.44,142.41,0.033]
[1741148087168,20.80740833,142.43,142.41,0.033]
[1741148087551,20.80740833,142.42,142.41,0.033]
[1741148089763,165.53620833,142.43,142.41,0.033]
[1741148090466,90.2288,142.43,142.41,0.033]
[1741148090657,81.8,142.43,142.41,0.033]
[1741148091364,20.80740833,142.45,142.41,0.033]
[1741148091580,5.76,142.46,142.42,20.80740833]
[1741148091882,5.76,142.46,142.43,20.80740833]
[1741148092183,5.76,142.46,142.42,20.80740833]
[1741148092586,5.76,142.46,142.43,7.0209]
[1741148093161,26.56740833,142.46,142.43,7.0209]
[1741148093359,20.80740833,142.44,142.43,7.0209]
[1741148093579,20.80740833,142.45,142.43,7.0209]
[1741148094454,26.56740833,142.46,142.41,7.0549]
[1741148094877,87.56,142.46,142.41,27.86230833]
[1741148095381,87.56,142.46,142.41,45.41720833]
[1741148095893,108.36740833,142.46,142.41,24.6098]
[1741148096382,108.36740833,142.46,142.41,336.6098]
[1741148096969,108.36740833,142.46,142.41,24.6098]
[1741148097171,87.56,142.46,142.41,45.41720833]
[1741148097370,87.56,142.46,142.42,20.80740833]
[1741148097790,5.76,142.46,142.43,20.80740833]
[1741148098087,81.83,142.49,142.44,20.80740833]
[1741148098391,81.83,142.49,142.45,20.80740833]
[1741148098687,0.03,142.46,142.45,27.82740833]
[1741148099060,0.03,142.49,142.45,45.37740833]
[1741148099370,0.03,142.49,142.46,20.80740833]
[1741148099596,0.03,142.49,142.45,45.37740833]
[1741148099968,0.03,142.49,142.45,357.37740833]
[1741148100168,0.03,142.49,142.47,7.019]
[1741148101289,0.03,142.49,142.45,350.35740833]
[1741148101482,0.03,142.49,142.46,7.0195]
[1741148103470,0.03,142.49,142.47,20.80740833]
[1741148104975,0.03,142.49,142.46,7.0195]
[1741148105593,0.03,142.49,142.45,38.35710833]
[1741148106165,0.03,142.49,142.47,20.0]
[1741148107482,0.03,142.49,142.47,27.0185]
[1741148107686,0.03,142.5,142.48,0.28432314]
[1741148107892,0.0001,142.5,142.49,41.09173147]
[1741148108063,0.03,142.55,142.5,0.28432314]
[1741148108265,0.0001,142.55,142.53,20.28432314]
[1741148108482,0.0001,142.55,142.53,101.88432314]
[1741148108690,0.0001,142.55,142.54,20.80740833]
[1741148108896,0.0001,142.55,142.53,102.40740833]
[1741148109187,0.0001,142.55,142.54,21.09173147]
[1741148109692,0.0001,142.55,142.54,28.10723147]
[1741148109893,0.0001,142.55,142.54,20.80740833]
[1741148110077,0.0001,142.55,142.54,27.82290833]
[1741148110273,0.0001,142.55,142.53,109.42340833]
[1741148110671,0.0001,142.55,142.53,7.016]
[1741148110888,0.0001,142.55,142.52,7.0164]
[1741148111098,20.80750833,142.55,142.49,7.018]
[1741148111269,102.60740833,142.54,142.48,20.80740833]
[1741148111476,20.80740833,142.52,142.47,7.0189]
[1741148111777,20.80740833,142.52,142.46,27.82670833]
[1741148111981,20.80740833,142.51,142.45,109.42730833]
[1741148112586,20.80740833,142.52,142.46,20.80740833]
[1741148113002,110.93780833,142.55,142.5,20.0]
[1741148113299,81.8001,142.55,142.52,20.80740833]
[1741148114200,81.8001,142.55,142.5,40.80740833]
[1741148114996,102.60750833,142.55,142.5,40.80740833]
[1741148115299,20.80740833,142.53,142.48,7.0184]
[1741148116471,33.21282948,142.49,142.44,7.0204]
[1741148116672,33.21282948,142.47,142.44,7.0204]
[1741148117093,115.01282948,142.48,142.43,7.0209]
[1741148117283,33.21282948,142.46,142.41,0.033]
[1741148117781,115.01282948,142.47,142.41,33.24582948]
[1741148118606,81.8,142.47,142.42,33.21282948]
[1741148118905,87.56,142.49,142.45,33.21282948]
[1741148119603,87.56,142.49,142.46,33.21282948]
[1741148119810,5.76,142.53,142.48,40.23132948]
[1741148120106,5.76,142.53,142.51,33.21282948]
[1741148120302,5.76,142.53,142.5,33.21282948]
[1741148120482,8.5414,142.55,142.5,33.21282948]
[1741148120682,8.5414,142.55,142.51,33.21282948]
[1741148121719,0.0001,142.55,142.53,33.21282948]
[1741148122022,0.0001,142.55,142.54,33.21282948]
[1741148122201,0.0001,142.55,142.54,33.49715262]
[1741148122821,0.0001,142.55,142.54,115.09715262]
[1741148122998,0.0001,142.58,142.57,20.0]
[1741148123193,0.0001,142.58,142.57,53.49715262]
[1741148123614,0.0001,142.58,142.57,135.09715262]
[1741148123814,0.0001,142.58,142.57,142.11115262]
[1741148124519,0.03,142.64,142.58,0.28432314]
[1741148124520,0.0001,142.61,142.58,0.28432314]
[1741148124713,0.0001,142.61,142.6,53.49715262]
[1741148125420,0.0001,142.61,142.6,365.49715262]
[1741148126416,0.0001,142.61,142.6,372.50975262]
[1741148127197,0.0001,142.61,142.6,372.22542948]
[1741148127416,0.0001,142.61,142.6,339.0126]
[1741148127717,0.0001,142.61,142.6,27.0126]
[1741148127901,0.0001,142.61,142.6,7.0126]
[1741148128420,0.0001,142.61,142.57,17.5352]
[1741148128421,0.0001,142.61,142.57,7.014]
[1741148128923,0.0001,142.61,142.53,81.6]
[1741148128924,39.82822948,142.6,142.55,7.015]
[1741148129102,6.6154,142.6,142.55,40.22782948]
[1741148129297,6.6154,142.6,142.56,33.21282948]
[1741148129497,6.6154,142.6,142.55,40.22782948]
[1741148132213,6.6154,142.6,142.57,33.21282948]
[1741148132627,5.7601,142.61,142.57,33.21282948]
[1741148132830,0.0001,142.61,142.58,33.21282948]
[1741148133132,0.0001,142.61,142.59,33.21282948]
[1741148133711,0.0001,142.61,142.57,33.21282948]
[1741148133906,0.0001,142.61,142.56,33.21282948]
[1741148134114,33.21292948,142.61,142.55,40.22782948]
[1741148134730,33.21282948,142.6,142.55,7.015]
[1741148135411,115.01282948,142.6,142.55,7.015]
[1741148135634,33.21282948,142.59,142.54,7.0154]
[1741148135835,33.21282948,142.57,142.51,33.21282948]
[1741148136007,121.10692948,142.56,142.5,33.24582948]
[1741148136329,126.86692948,142.56,142.5,33.24582948]
[1741148137029,93.6541,142.56,142.52,33.21282948]
[1741148137229,93.6541,142.56,142.53,33.21282948]
[1741148137443,93.6541,142.56,142.52,33.21282948]
[1741148137741,93.6541,142.56,142.51,33.21282948]
[1741148138108,93.6541,142.56,142.53,0.033]
[1741148138633,126.86692948,142.56,142.53,0.033]
[1741148138821,116.93062948,142.55,142.53,0.033]
[1741148139134,33.21282948,142.54,142.53,0.033]
[1741148139839,38.97282948,142.54,142.53,0.033]
[1741148140017,5.76,142.54,142.53,0.033]
[1741148140514,38.97282948,142.54,142.53,0.033]
[1741148140713,33.21282948,142.54,142.53,0.033]
[1741148141018,38.97282948,142.54,142.53,0.033]
[1741148142326,0.03,142.6,142.55,0.28432314]
[1741148142529,0.0001,142.61,142.6,0.28432314]
[1741148143110,0.0001,142.61,142.6,33.49715262]
[1741148143415,0.0001,142.61,142.6,33.21282948]
[1741148143739,0.0001,142.61,142.6,33.49715262]
[1741148144118,0.0001,142.61,142.6,40.50975262]
[1741148144615,0.0001,142.61,142.6,40.22542948]
[1741148145344,0.0001,142.61,142.6,352.50975262]
[1741148145918,0.0001,142.61,142.6,40.50975262]
[1741148146836,0.0001,142.61,142.6,33.21282948]
[1741148148240,0.0001,142.61,142.6,40.50975262]
[1741148148446,0.0001,142.61,142.6,122.10975262]
[1741148148942,0.0001,142.61,142.6,434.10975262]
[1741148152653,0.0001,142.64,142.63,20.28432314]
[1741148152941,0.0001,142.64,142.63,135.09715262]
[1741148155440,0.0001,142.64,142.63,142.10825262]
[1741148155840,0.0001,142.64,142.63,454.10825262]
[1741148156939,0.03,142.7,142.64,2.28432314]
[1741148157133,0.03,142.7,142.69,33.49715262]
[1741148157341,0.03,142.7,142.69,115.09715262]
[1741148157524,0.03,142.7,142.69,122.10525262]
[1741148158027,0.03,142.7,142.69,115.09715262]
[1741148158432,0.03,142.7,142.69,122.10525262]
[1741148158634,0.03,142.7,142.69,33.21282948]
[1741148158938,0.03,142.7,142.68,33.21282948]
[1741148159520,0.03,142.7,142.67,40.22182948]
[1741148160248,0.03,142.7,142.67,352.22182948]
[1741148160843,0.03,142.7,142.68,33.21282948]
[1741148161429,0.03,142.7,142.67,352.22182948]
[1741148161626,0.03,142.7,142.69,33.49715262]
[1741148161825,0.03,142.7,142.69,33.21282948]
[1741148163526,0.03,142.7,142.67,24.5319]
[1741148163822,0.03,142.7,142.67,7.009]
[1741148164444,0.03,142.7,142.67,40.22182948]
[1741148164635,0.03,142.7,142.68,33.21282948]
[1741148165149,0.03,142.7,142.69,53.21282948]
[1741148165528,0.03,142.7,142.69,20.0]
[1741148165757,0.03,142.7,142.67,33.21282948]
[1741148165945,0.03,142.7,142.66,50.73682948]
[1741148166157,0.03,142.7,142.67,33.21282948]
[1741148166652,0.03,142.7,142.67,40.22192948]
[1741148166828,0.03,142.7,142.66,50.73682948]
[1741148167031,0.03,142.7,142.67,33.21282948]
[1741148167432,0.03,142.7,142.69,33.21282948]
[1741148167831,0.03,142.7,142.68,33.21282948]
[1741148168261,0.03,142.7,142.68,345.21282948]
[1741148168946,0.03,142.7,142.69,7.0081]
[1741148169142,0.03,142.7,142.68,312.0]
[1741148169448,0.03,142.7,142.68,7.0086]
[1741148170033,0.03,142.7,142.66,7.0096]
[1741148170936,0.03,142.7,142.66,33.21282948]
[1741148171864,90.0471,142.69,142.64,7.0106]
[1741148172051,33.21282948,142.68,142.64,7.0106]
[1741148172247,33.21282948,142.68,142.64,319.0106]
[1741148172454,33.21282948,142.68,142.64,312.0]
[1741148173052,33.21282948,142.67,142.62,40.22422948]
[1741148173254,81.8,142.67,142.62,40.22422948]
[1741148173567,115.01282948,142.67,142.61,40.22472948]
[1741148174067,33.21282948,142.65,142.6,33.24582948]
[1741148174776,115.01282948,142.66,142.6,33.24582948]
[1741148174949,115.01282948,142.65,142.6,0.033]